bitfinex/quotes_SOLUSD_20250406
["timestamp","ask_amount","ask_price","bid_price","bid_amount"]
[1743916548665,5.8406,119.85,119.81,52.66245196]
[1743916548862,22.51465624,119.85,119.81,52.66245196]
[1743916549949,22.51465624,119.85,119.81,46.82025196]
[1743916550167,16.67405624,119.84,119.81,38.76635196]
[1743916551170,22.51535624,119.84,119.81,38.76635196]
[1743916554075,16.67405624,119.83,119.81,38.76635196]
[1743916554450,98.47405624,119.82,119.81,38.76635196]
[1743916554668,98.47405624,119.82,119.8,0.063]
[1743916554964,16.67405624,119.81,119.8,0.063]
[1743916555564,22.51655624,119.81,119.8,0.063]
[1743916558270,22.51655624,119.81,119.79,0.063]
[1743916558271,1.5441,119.8,119.79,0.063]
[1743916558444,18.21815624,119.8,119.79,0.063]
[1743916559272,43.13728981,119.8,119.79,0.063]
[1743916560466,43.63728981,119.8,119.79,0.063]
[1743916560765,63.63728981,119.8,119.79,0.0001]
[1743916561265,63.13728981,119.8,119.79,0.0001]
[1743916561448,63.63728981,119.8,119.79,0.0001]
[1743916562267,16.67405624,119.8,119.79,0.0001]
[1743916562572,16.84124805,119.81,119.79,0.0001]
[1743916564154,22.68384805,119.81,119.79,0.0001]
[1743916564565,16.84124805,119.81,119.79,0.0001]
[1743916564869,0.16719181,119.81,119.79,0.0001]
[1743916565254,16.84124805,119.81,119.79,0.0001]
[1743916565469,16.67405624,119.8,119.79,0.0001]
[1743916566865,22.51705624,119.8,119.79,0.0001]
[1743916567058,0.16719181,119.81,119.79,0.0001]
[1743916567264,16.84124805,119.81,119.79,0.0001]
[1743916569480,22.68384805,119.81,119.79,0.0001]
[1743916570073,16.67405624,119.8,119.79,0.0001]
[1743916571359,22.51705624,119.8,119.79,0.0001]
[1743916571674,50.17578981,119.8,119.79,0.0001]
[1743916571881,50.17578981,119.8,119.78,0.063]
[1743916572173,16.67405624,119.79,119.78,0.063]
[1743916572478,17.17405624,119.79,119.78,0.063]
[1743916572772,36.25018981,119.79,119.78,0.063]
[1743916574258,42.09368981,119.79,119.78,0.063]
[1743916574860,81.737,119.77,119.76,0.063]
[1743916575076,16.67405624,119.77,119.76,0.063]
[1743916576377,22.51855624,119.77,119.76,0.063]
[1743916577756,16.67405624,119.77,119.76,0.063]
[1743916578279,22.6714347,119.77,119.76,0.063]
[1743916579985,89.36765966,119.77,119.76,0.063]
[1743916580364,108.44379323,119.77,119.76,0.063]
[1743916581374,22.6714347,119.77,119.76,0.063]
[1743916581583,16.8269347,119.77,119.76,0.063]
[1743916581967,22.6714347,119.77,119.76,0.063]
[1743916583285,22.7014347,119.77,119.76,0.063]
[1743916583583,16.8569347,119.77,119.76,0.063]
[1743916583771,0.18287846,119.77,119.76,0.063]
[1743916584091,16.8569347,119.77,119.76,0.063]
[1743916584873,22.7014347,119.77,119.76,0.063]
[1743916586664,16.8569347,119.77,119.76,0.063]
[1743916587690,0.18287846,119.77,119.76,0.063]
[1743916588790,16.8569347,119.77,119.76,0.063]
[1743916589168,22.7014347,119.77,119.76,0.063]
[1743916589369,16.8569347,119.77,119.76,0.063]
[1743916590089,22.7014347,119.77,119.76,0.063]
[1743916592286,16.8569347,119.77,119.76,0.063]
[1743916592492,22.7014347,119.77,119.76,0.063]
[1743916593091,16.8569347,119.77,119.76,0.063]
[1743916594076,0.18287846,119.77,119.76,0.063]
[1743916598190,0.34191539,119.77,119.76,0.063]
[1743916598869,0.18903693,119.77,119.76,0.063]
[1743916599287,16.86309317,119.77,119.76,0.063]
[1743916600679,0.18903693,119.77,119.76,0.063]
[1743916600882,16.86309317,119.77,119.76,0.063]
[1743916601094,83.55931813,119.77,119.76,0.063]
[1743916601392,102.6354517,119.77,119.76,0.063]
[1743916601582,35.93922674,119.77,119.76,0.063]
[1743916601785,41.78372674,119.77,119.76,0.063]
[1743916602183,22.70759317,119.77,119.76,0.063]
[1743916602696,0.18903693,119.77,119.76,0.063]
[1743916603074,16.86309317,119.77,119.76,0.063]
[1743916604596,22.70759317,119.77,119.76,0.063]
[1743916605186,16.86309317,119.77,119.76,0.063]
[1743916605698,22.70759317,119.77,119.76,0.063]
[1743916605994,41.78372674,119.77,119.76,0.063]
[1743916611907,23.13407788,119.77,119.76,0.063]
[1743916614803,41.78372674,119.77,119.76,0.063]
[1743916615002,108.4799517,119.77,119.76,0.063]
[1743916616193,108.9799517,119.77,119.76,0.063]
[1743916617209,108.4799517,119.77,119.76,0.063]
[1743916618008,41.78372674,119.77,119.76,0.063]
[1743916618196,41.96297371,119.77,119.76,0.063]
[1743916618812,41.80393678,119.77,119.76,0.063]
[1743916619013,108.50016174,119.77,119.76,0.063]
[1743916626511,41.80393678,119.77,119.76,0.063]
[1743916629727,108.50016174,119.77,119.76,0.063]
[1743916629904,89.42402817,119.77,119.76,0.063]
[1743916630214,22.72780321,119.77,119.76,0.063]
[1743916631328,6.05374697,119.77,119.76,0.063]
[1743916631501,0.20924697,119.77,119.76,0.063]
[1743916632199,16.88330321,119.77,119.76,0.063]
[1743916632601,0.20924697,119.77,119.76,0.063]
[1743916632798,16.88330321,119.77,119.76,0.063]
[1743916636323,0.20924697,119.77,119.76,0.063]
[1743916638227,0.37542899,119.77,119.76,0.063]
[1743916638921,0.19618202,119.77,119.76,0.063]
[1743916642125,16.87023826,119.77,119.76,0.063]
[1743916642331,22.71473826,119.77,119.76,0.063]
[1743916645230,16.87023826,119.77,119.76,0.063]
[1743916648050,0.19618202,119.77,119.76,0.063]
[1743916657850,0.19618202,119.77,119.76,8.0001]
[1743916658227,0.37817414,119.77,119.76,8.0001]
[1743916658423,0.37817414,119.77,119.76,13.8451]
[1743916658853,0.21199212,119.77,119.76,13.8451]
[1743916663334,0.21199212,119.77,119.76,8.0001]
[1743916664740,0.21199212,119.77,119.76,13.8451]
[1743916670138,0.21199212,119.77,119.76,8.0001]
[1743916671456,0.21199212,119.77,119.76,0.063]
[1743916674863,16.88604836,119.77,119.76,0.063]
[1743916676759,0.21199212,119.77,119.76,0.063]
[1743916678176,0.21199212,119.77,119.76,5.908]
[1743916678472,0.38153505,119.77,119.76,5.908]
[1743916678642,0.38153505,119.77,119.76,22.86637938]
[1743916678838,0.19954293,119.77,119.76,29.88637938]
[1743916679666,0.19954293,119.77,119.76,13.21232314]
[1743916680170,0.19954293,119.77,119.76,12.928]
[1743916680351,0.19954293,119.77,119.76,7.083]
[1743916680746,16.87359917,119.77,119.76,0.063]
[1743916682273,0.19954293,119.77,119.76,0.063]
[1743916685257,16.87359917,119.77,119.76,0.063]
[1743916687570,0.19954293,119.77,119.76,0.063]
[1743916697384,0.19954293,119.77,119.76,5.908]
[1743916697571,0.19954293,119.77,119.76,29.86637938]
[1743916698275,0.356427,119.77,119.76,29.86637938]
[1743916698988,0.18688407,119.77,119.76,29.86637938]
[1743916703269,0.18688407,119.77,119.76,48.65818981]
[1743916703586,0.18688407,119.77,119.76,56.23738981]
[1743916704991,8.407e-05,119.77,119.76,56.23738981]
[1743916706691,0.17557994,119.78,119.77,0.28432314]
[1743916706692,6.401e-05,119.78,119.77,0.28432314]
[1743916706886,6.401e-05,119.78,119.77,16.95837938]
[1743916708582,0.18089947,119.79,119.77,102.44641477]
[1743916708583,6.348e-05,119.79,119.77,102.44641477]
[1743916708788,4.337e-05,119.8,119.79,34.19652314]
[1743916709167,4.337e-05,119.8,119.79,50.87057938]
[1743916711879,1.974e-05,119.81,119.8,18.79181043]
[1743916712082,8.584e-05,119.83,119.82,26.28432314]
[1743916712285,8.584e-05,119.83,119.82,42.95837938]
[1743916713870,8.584e-05,119.83,119.82,48.80037938]
[1743916716392,7.286e-05,119.84,119.83,19.07613357]
[1743916716593,7.286e-05,119.84,119.83,35.75018981]
[1743916717994,7.286e-05,119.84,119.83,41.59178981]
[1743916718381,0.15103301,119.84,119.83,41.59178981]
[1743916719082,0.15096015,119.84,119.83,41.59178981]
[1743916720189,0.15096015,119.84,119.83,24.91773357]
[1743916720397,0.15096015,119.84,119.83,41.59178981]
[1743916720593,0.15096015,119.84,119.83,24.91773357]
[1743916720783,0.15096015,119.84,119.83,12.8416]
[1743916721091,0.15096015,119.84,119.83,48.59178981]
[1743916721888,6.015e-05,119.84,119.83,56.60488981]
[1743916723195,6.015e-05,119.84,119.83,39.93083357]
[1743916726975,6.015e-05,119.84,119.83,90.08083357]
[1743916738213,0.15850001,119.84,119.83,90.08083357]
[1743916738417,0.15850001,119.84,119.83,56.60488981]
[1743916742018,0.15850001,119.84,119.83,5.8416]
[1743916742519,0.15850001,119.84,119.83,6.12592314]
[1743916743818,0.15850001,119.84,119.83,5.8416]
[1743916743999,0.15850001,119.84,119.83,6.12592314]
[1743916747325,1e-08,119.84,119.83,41.59178981]
[1743916758224,5.147e-05,119.84,119.83,91.74178981]
[1743916762842,5.147e-05,119.84,119.83,91.80478981]
[1743916763054,0.03005147,119.84,119.83,91.80478981]
[1743916763958,5.147e-05,119.84,119.83,91.80478981]
[1743916769057,5.398e-05,119.85,119.84,19.07613357]
[1743916769345,5.398e-05,119.85,119.84,35.75018981]
[1743916770247,5.398e-05,119.85,119.84,41.59128981]
[1743916776347,5.398e-05,119.85,119.84,24.91723357]
[1743916777644,5.398e-05,119.85,119.84,41.59128981]
[1743916778253,0.17599211,119.85,119.84,41.59128981]
[1743916778644,0.17599211,119.85,119.84,91.74128981]
[1743916789657,0.17599211,119.85,119.84,75.06723357]
[1743916798257,0.33212321,119.85,119.84,75.06723357]
[1743916798861,0.15618508,119.85,119.84,75.06723357]
[1743916800060,0.15618508,119.85,119.84,91.74128981]
[1743916807856,0.15618508,119.85,119.84,75.06723357]
[1743916811484,0.15618508,119.85,119.84,75.13023357]
[1743916814311,0.15618508,119.85,119.84,91.80428981]
[1743916814312,8.508e-05,119.85,119.84,91.80428981]
[1743916814477,0.18853768,119.88,119.86,45.07613357]
[1743916814781,0.18853768,119.88,119.87,23.93837938]
[1743916814983,0.18853768,119.88,119.87,42.73018981]
[1743916815190,3.768e-05,119.88,119.87,42.73018981]
[1743916815595,5.653e-05,119.89,119.88,19.07613357]
[1743916815799,5.653e-05,119.89,119.88,35.75018981]
[1743916816276,5.653e-05,119.89,119.88,91.73928981]
[1743916818398,0.17524857,119.89,119.88,91.73928981]
[1743916818798,0.38252761,119.9,119.89,35.75018981]
[1743916818989,0.20055405,119.9,119.89,35.75018981]
[1743916819905,0.20055405,119.9,119.89,85.90018981]
[1743916820603,0.20055405,119.9,119.89,91.73878981]
[1743916825113,0.15377054,119.91,119.9,19.07613357]
[1743916825302,0.15377054,119.91,119.9,108.28451477]
[1743916825804,0.15377054,119.91,119.9,41.58828981]
[1743916828513,0.15377054,119.91,119.9,41.58828981]
[1743916830397,7.054e-05,119.91,119.9,41.58828981]
[1743916832918,7.054e-05,119.91,119.9,91.73828981]
[1743916835523,7.054e-05,119.91,119.9,158.43451477]
[1743916835723,7.054e-05,119.91,119.9,91.73828981]
[1743916838301,5.721e-05,119.91,119.9,158.43451477]
[1743916839028,5.721e-05,119.91,119.9,158.93451477]
[1743916840605,5.721e-05,119.91,119.9,92.23828981]
[1743916842922,5.721e-05,119.91,119.9,91.73828981]
[1743916843128,5.721e-05,119.91,119.9,41.30396667]
[1743916843332,5.721e-05,119.91,119.9,48.26396667]
[1743916843509,5.721e-05,119.91,119.9,48.54828981]
[1743916848136,5.721e-05,119.91,119.9,41.58828981]
[1743916848431,5.721e-05,119.91,119.9,48.54828981]
[1743916850332,5.721e-05,119.91,119.9,7.24432314]
[1743916850333,1.57615721,119.91,119.9,7.24432314]
[1743916850722,1.57615721,119.91,119.9,6.96]
[1743916851123,1.57615721,119.91,119.9,7.24432314]
[1743916852038,1.57615721,119.91,119.9,0.28432314]
[1743916852238,1.57615721,119.91,119.9,7.24432314]
[1743916854234,1.57615721,119.91,119.9,23.91837938]
[1743916854536,5.721e-05,119.91,119.9,48.54828981]
[1743916855240,5.721e-05,119.91,119.9,48.56828981]
[1743916857637,5.721e-05,119.91,119.9,31.89423357]
[1743916858341,0.15826783,119.91,119.9,31.89423357]
[1743916858841,0.15821062,119.91,119.9,31.89423357]
[1743916864250,0.15821062,119.91,119.9,31.95723357]
[1743916864758,0.18821062,119.91,119.9,31.95723357]
[1743916865456,0.18821062,119.91,119.9,48.63128981]
[1743916878885,0.03,119.91,119.9,48.63128981]
[1743916886470,0.03,119.91,119.9,0.063]
[1743916886863,16.70405624,119.91,119.9,0.063]
[1743916888792,0.03,119.91,119.9,0.063]
[1743916891305,16.70405624,119.91,119.9,0.063]
[1743916898811,0.03,119.91,119.9,0.063]
[1743916913402,0.03,119.91,119.9,16.73705624]
[1743916913607,0.03,119.91,119.9,35.81318981]
[1743916913794,0.0001,119.91,119.9,85.96318981]
[1743916913995,0.0001,119.91,119.9,94.07888981]
[1743916915009,0.0001,119.91,119.9,99.91698981]
[1743916915987,9.941e-05,119.93,119.91,19.07613357]
[1743916916283,9.941e-05,119.93,119.92,23.65405624]
[1743916918410,9.941e-05,119.93,119.92,29.49125624]
[1743916923085,9.941e-05,119.93,119.92,48.56738981]
[1743916923610,9.941e-05,119.94,119.93,19.07613357]
[1743916923911,9.941e-05,119.94,119.93,35.75018981]
[1743916924607,9.941e-05,119.94,119.93,91.73688981]
[1743916925694,9.941e-05,119.94,119.93,98.30865931]
[1743916926610,9.941e-05,119.96,119.95,26.0]
[1743916926800,9.941e-05,119.96,119.95,61.75018981]
[1743916928810,9.941e-05,119.96,119.95,117.73588981]
[1743916930115,9.941e-05,119.96,119.95,67.58588981]
[1743916936928,9.941e-05,119.96,119.95,117.73588981]
[1743916942825,9.941e-05,119.96,119.95,117.79888981]
[1743916950333,9.941e-05,119.96,119.95,67.64888981]
[1743916954924,9.941e-05,119.96,119.95,117.79888981]
[1743916955914,9.941e-05,119.97,119.96,69.22613357]
[1743916956150,9.941e-05,119.97,119.96,92.86018981]
[1743916956638,9.941e-05,119.97,119.96,98.69538981]
[1743916979740,9.941e-05,119.97,119.96,31.58701043]
[1743916980155,9.941e-05,119.97,119.96,31.87133357]
[1743916981560,9.941e-05,119.97,119.96,24.62701043]
[1743916981767,9.941e-05,119.97,119.96,5.8352]
[1743916981978,9.941e-05,119.97,119.96,12.7952]
[1743916982474,9.941e-05,119.97,119.96,12.8582]
[1743916990881,9.941e-05,119.97,119.96,29.53225624]
[1743916994569,9.941e-05,119.97,119.96,48.60838981]
[1743917003991,9.941e-05,119.97,119.96,98.75838981]
[1743917020807,0.0001,120.0,119.99,76.29216157]
[1743917020979,0.0001,120.0,119.99,92.96621781]
[1743917021185,0.0001,120.0,119.99,95.22613357]
[1743917021384,0.0001,120.0,119.99,61.75018981]
[1743917021783,0.0001,120.0,119.99,67.58398981]
[1743917024706,0.0001,120.0,119.99,50.90993357]
[1743917026195,0.0001,120.0,119.99,24.90993357]
[1743917026398,0.0001,120.0,119.98,6.11822314]
[1743917035833,0.0001,120.0,119.98,6.18122314]
[1743917038927,0.0001,120.0,119.99,35.75018981]
[1743917040318,0.0001,120.0,119.99,24.90993357]
[1743917048400,0.0001,120.0,119.99,24.97293357]
[1743917056807,0.0001,120.0,119.99,31.93293357]
[1743917066041,0.0001,120.0,119.99,48.60698981]
[1743917077046,0.0001,120.0,119.99,98.66698981]
[1743917095764,0.0001,120.0,119.99,41.36266667]
[1743917096063,0.0001,120.0,119.99,48.32266667]
[1743917096249,0.0001,120.0,119.99,48.60698981]
[1743917098466,0.0001,120.0,119.99,98.66698981]
[1743917101170,0.0001,120.0,119.99,48.60698981]
[1743917103675,0.0001,120.0,119.99,31.93293357]
[1743917103852,0.0001,120.0,119.99,0.063]
[1743917104055,0.0001,120.0,119.98,4.95395308]
[1743917104056,18.30815624,120.0,119.98,4.95395308]
[1743917104374,18.30815624,120.0,119.97,0.14216157]
[1743917104568,18.30815624,120.0,119.97,19.07613357]
[1743917105875,18.30815624,120.0,119.98,5.834]
[1743917106354,1.6341,120.0,119.98,5.834]
[1743917107577,1.6341,120.0,119.98,22.50805624]
[1743917107772,0.0001,120.0,119.99,35.75018981]
[1743917108295,0.0001,120.0,119.99,41.58398981]
[1743917114673,0.0001,120.0,119.99,41.64698981]
[1743917116884,0.0001,120.0,119.99,91.70698981]
[1743917131471,0.0001,120.02,120.01,95.13613357]
[1743917131671,0.0001,120.02,120.01,118.77018981]
[1743917133489,0.0001,120.02,120.01,124.60298981]
[1743917137412,0.0001,120.02,120.01,107.92893357]
[1743917137580,0.0001,120.02,120.01,124.60298981]
[1743917143884,0.0001,120.03,120.02,19.07613357]
[1743917144090,0.0001,120.03,120.02,35.75018981]
[1743917145813,0.0001,120.03,120.02,41.58248981]
[1743917146910,0.0001,120.04,120.02,91.64248981]
[1743917147110,0.0001,120.04,120.03,35.75018981]
[1743917147616,0.0001,120.04,120.03,85.81018981]
[1743917148012,0.0001,120.04,120.03,91.64198981]
[1743917153207,0.0001,120.04,120.03,24.62361043]
[1743917153414,0.0001,120.04,120.03,41.29766667]
[1743917153616,0.0001,120.04,120.03,41.36066667]
[1743917153812,0.0001,120.04,120.03,41.64498981]
[1743917159395,0.0001,120.04,120.03,24.97093357]
[1743917162718,0.0001,120.04,120.03,41.64498981]
[1743917164818,0.03,120.06,120.03,41.64498981]
[1743917164819,0.03,120.08,120.05,56.03306157]
[1743917165026,6.0611,120.12,120.07,35.75018981]
[1743917165226,0.03,120.12,120.09,16.67405624]
[1743917165405,0.03,120.12,120.1,6.96]
[1743917165924,0.03,120.12,120.11,35.75018981]
[1743917166922,0.03,120.12,120.11,41.57808981]
[1743917167717,0.03,120.12,120.11,43.66137391]
[1743917168331,0.03,120.12,120.11,26.98731767]
[1743917169125,0.03,120.12,120.11,93.72137391]
[1743917178935,0.03,120.12,120.11,99.90120923]
[1743917179833,0.03,120.12,120.11,83.22715299]
[1743917180337,0.03,120.12,120.11,134.97481431]
[1743917180713,16.70405624,120.12,120.11,27.05492985]
[1743917180913,16.70405624,120.12,120.11,34.01492985]
[1743917181624,16.70405624,120.12,120.11,34.29925299]
[1743917182018,16.70405624,120.12,120.11,34.01492985]
[1743917182334,16.70405624,120.12,120.11,34.29925299]
[1743917182636,0.03,120.12,120.11,34.29925299]
[1743917183322,0.03,120.12,120.11,40.12715299]
[1743917187226,0.03,120.12,120.11,33.16715299]
[1743917187428,0.03,120.12,120.11,40.12715299]
[1743917194850,0.03,120.12,120.11,34.01492985]
[1743917195346,0.03,120.12,120.11,34.29925299]
[1743917196050,0.03,120.12,120.11,15.22311942]
[1743917196658,0.03,120.12,120.11,8.26311942]
[1743917197350,16.70405624,120.12,120.1,51.75197003]
[1743917197532,16.67405624,120.11,120.1,51.75197003]
[1743917197733,16.67405624,120.11,120.1,48.92282916]
[1743917198254,22.50195624,120.11,120.1,48.92282916]
[1743917199559,22.53155624,120.12,120.1,48.92282916]
[1743917200057,16.67405624,120.11,120.1,48.92282916]
[1743917200870,22.53155624,120.12,120.1,48.92282916]
[1743917203658,16.70405624,120.12,120.1,48.92282916]
[1743917206360,0.03,120.12,120.1,48.92282916]
[1743917217293,16.67405624,120.11,120.1,48.92282916]
[1743917217577,26.0,120.09,120.08,0.063]
[1743917217766,48.50295624,120.09,120.08,0.063]
[1743917218385,63.07535624,120.09,120.03,7.023]
[1743917218566,16.67405624,120.06,120.04,2.08457661]
[1743917219278,16.67405624,120.06,120.03,7.023]
[1743917220964,22.50425624,120.07,120.03,7.023]
[1743917223263,16.67405624,120.06,120.03,7.023]
[1743917224773,22.50425624,120.07,120.03,7.023]
[1743917226589,16.67405624,120.06,120.03,7.023]
[1743917227087,16.67405624,120.05,120.03,0.063]
[1743917227278,16.67405624,120.04,120.03,0.063]
[1743917227587,22.50535624,120.04,120.03,0.063]
[1743917230192,104.30505624,120.05,120.03,0.063]
[1743917230389,98.47405624,120.05,120.03,0.063]
[1743917234206,16.67405624,120.04,120.03,0.063]
[1743917236395,98.47405624,120.05,120.03,0.063]
[1743917237082,81.8,120.05,120.03,0.063]
[1743917239004,81.8,120.05,120.03,16.73705624]
[1743917239579,81.8,120.05,120.03,0.063]
[1743917240305,81.8,120.05,120.03,16.73705624]
[1743917240799,81.8,120.05,120.03,22.56865624]
[1743917245397,81.8,120.05,120.04,16.67405624]
[1743917245597,81.8,120.05,120.04,22.50535624]
[1743917246104,81.8,120.05,120.04,5.8313]
[1743917248422,16.70405624,120.08,120.04,5.8313]
[1743917249688,22.53365624,120.08,120.03,22.56865624]
[1743917249896,22.50405624,120.07,120.03,0.063]
[1743917250106,16.67405624,120.06,120.03,0.063]
[1743917250295,16.67405624,120.07,120.03,0.063]
[1743917251103,16.70405624,120.08,120.03,16.73705624]
[1743917252313,16.70405624,120.08,120.04,5.8313]
[1743917252512,22.53355624,120.08,120.04,5.8313]
[1743917252894,22.53355624,120.08,120.03,22.56865624]
[1743917253890,16.67405624,120.07,120.03,5.8946]
[1743917255512,16.70405624,120.08,120.03,22.56865624]
[1743917256914,16.70405624,120.08,120.04,2.08440463]
[1743917257516,22.53355624,120.08,120.04,2.08440463]
[1743917257717,22.53355624,120.08,120.03,22.56865624]
[1743917260114,16.67405624,120.07,120.03,5.8946]
[1743917261699,16.67405624,120.07,120.04,2.08457637]
[1743917262398,16.67405624,120.07,120.03,5.8946]
[1743917264327,16.67405624,120.07,120.04,2.08457637]
[1743917265426,16.67405624,120.07,120.03,5.8946]
[1743917266625,5.8595,120.08,120.03,22.56865624]
[1743917266626,22.53355624,120.08,120.03,22.56865624]
[1743917266835,22.53355624,120.08,120.04,2.08458152]
[1743917267305,16.67405624,120.07,120.04,2.08458152]
[1743917267502,22.50405624,120.07,120.03,0.063]
[1743917276842,22.53345624,120.08,120.03,0.063]
[1743917277144,22.53345624,120.08,120.04,2.08469095]
[1743917278042,22.53345624,120.08,120.03,0.063]
[1743917278043,22.53345624,120.08,120.03,5.8947]
[1743917279646,22.53345624,120.08,120.04,2.08470748]
[1743917280848,22.53345624,120.08,120.03,5.8947]
[1743917281648,81.8,120.07,120.03,5.8947]
[1743917282550,81.8,120.07,120.04,2.08469216]
[1743917283252,81.8,120.07,120.03,22.56875624]
[1743917284638,81.8,120.07,120.03,5.8947]
[1743917285053,81.8,120.07,120.04,2.08458157]
[1743917285557,81.8,120.07,120.04,7.91588157]
[1743917286173,81.8,120.07,120.05,2.08458157]
[1743917286765,81.8,120.07,120.04,5.8313]
[1743917289063,81.8,120.07,120.05,2.08457537]
[1743917289870,81.8,120.07,120.04,5.8313]
[1743917291547,81.8,120.07,120.04,22.50535624]
[1743917291747,81.8,120.07,120.05,2.08455855]
[1743917292756,81.8,120.07,120.06,2.08455855]
[1743917295467,81.8,120.07,120.06,32.19501479]
[1743917295668,0.03,120.08,120.06,39.43933793]
[1743917295875,0.03,120.08,120.07,16.67405624]
[1743917296169,0.03,120.08,120.07,18.75861479]
[1743917296367,0.03,120.08,120.07,37.83474836]
[1743917297152,0.03,120.08,120.07,43.66464836]
[1743917301075,0.03,120.08,120.07,2.08455855]
[1743917304266,0.03,120.08,120.07,24.58851479]
[1743917305277,0.03,120.08,120.07,22.50395624]
[1743917307979,0.03,120.08,120.07,41.58008981]
[1743917308186,0.03,120.08,120.07,43.66405248]
[1743917310376,0.03,120.08,120.07,24.58791891]
[1743917315886,0.03,120.08,120.07,43.66405248]
[1743917318975,0.03,120.08,120.07,2.08396267]
[1743917319392,0.03,120.08,120.07,18.75801891]
[1743917320389,0.03,120.08,120.07,24.58791891]
[1743917322775,0.03,120.08,120.07,18.75801891]
[1743917323777,0.03,120.08,120.07,24.58791891]
[1743917331893,0.03,120.08,120.07,7.91386267]
[1743917335486,0.03,120.08,120.07,24.58791891]
[1743917337799,0.03,120.08,120.07,7.91386267]
[1743917347621,0.03,120.08,120.07,24.58791891]
[1743917349119,0.03,120.08,120.07,7.91386267]
[1743917349305,0.03,120.08,120.07,24.58791891]
[1743917350202,0.03,120.08,120.07,7.91386267]
[1743917350501,0.03,120.08,120.07,24.58791891]
[1743917358618,0.03,120.08,120.07,7.91386267]
[1743917361821,0.03,120.08,120.07,43.66405248]
[1743917371336,125.0580824,120.12,120.11,45.07613357]
[1743917371540,43.2580824,120.12,120.11,68.71018981]
[1743917371724,43.2580824,120.12,120.11,2.08396267]
[1743917373143,43.2580824,120.12,120.11,7.91186267]
[1743917374430,43.2580824,120.12,120.11,24.58591891]
[1743917388538,43.2580824,120.12,120.11,7.91186267]
[1743917388746,43.2580824,120.12,120.11,24.58591891]
[1743917390064,43.2580824,120.12,120.11,2.08396267]
[1743917390363,43.2580824,120.12,120.09,29.46265624]
[1743917391264,43.2580824,120.12,120.1,2.08342249]
[1743917391666,43.2580824,120.12,120.09,29.46265624]
[1743917392160,43.2580824,120.12,120.09,23.63405624]
[1743917392374,65.75963864,120.12,120.07,5.8299]
[1743917392671,18.25565624,120.11,120.08,0.063]
[1743917393245,22.50245624,120.1,120.08,0.063]
[1743917396391,16.67405624,120.1,120.08,0.063]
[1743917400291,22.50265624,120.1,120.08,0.063]
[1743917404390,16.67405624,120.1,120.08,0.063]
[1743917404967,24.08375624,120.11,120.08,0.063]
[1743917407298,7.4097,120.11,120.08,0.063]
[1743917407465,24.08375624,120.11,120.08,0.063]
[1743917409294,22.50215624,120.11,120.08,0.063]
[1743917419014,22.53215624,120.11,120.08,0.063]
[1743917420879,0.03,120.11,120.08,0.063]
[1743917421596,0.03,120.11,120.08,16.73705624]
[1743917422882,0.03,120.11,120.08,0.063]
[1743917425402,0.03,120.11,120.08,16.73705624]
[1743917425591,0.03,120.11,120.09,16.67405624]
[1743917426899,0.03,120.11,120.09,22.50275624]
[1743917427305,0.03,120.11,120.1,16.67405624]
[1743917427885,0.03,120.11,120.1,18.75737687]
[1743917428086,0.03,120.11,120.1,2.08332063]
[1743917429410,0.03,120.11,120.1,7.91172063]
[1743917431609,0.03,120.11,120.1,24.58577687]
[1743917434810,0.03,120.11,120.1,7.91172063]
[1743917434993,0.03,120.11,120.1,2.08332063]
[1743917436204,16.70405624,120.11,120.1,2.08332063]
[1743917436589,0.03,120.11,120.08,0.063]
[1743917441322,0.03,120.11,120.08,16.73705624]
[1743917442621,0.03,120.11,120.09,7.91266209]
[1743917443426,0.03,120.11,120.09,5.8289]
[1743917444599,0.03,120.11,120.09,22.50295624]
[1743917444802,0.03,120.11,120.1,16.67405624]
[1743917445102,0.03,120.11,120.1,35.75018981]
[1743917445303,0.03,120.11,120.1,37.83339008]
[1743917446719,0.03,120.11,120.1,43.66179008]
[1743917462244,43.2580824,120.12,120.11,18.64964886]
[1743917462440,43.2580824,120.12,120.11,37.40690537]
[1743917463035,0.03,120.12,120.11,37.40690537]
[1743917464051,0.03,120.12,120.11,43.51912851]
[1743917464235,0.03,120.12,120.11,43.66129008]
[1743917471340,0.03,120.12,120.11,43.72429008]
[1743917472353,0.03,120.12,120.11,27.05023384]
[1743917472522,0.03,120.12,120.11,43.72429008]